Cogmind - Beta 14 @@@ ROGUE MODE // 2024.10.29 @ 00:01:17 Player: Ae Result: Destroyed by SC-AIJ(R) with Subdweller Machine Gun Performance ------------- Evolutions (0) 0 Regions Visited (2) 400 Robots Destroyed (37) 185 Value Destroyed (871) 871 Prototype IDs (11) 220 Alien Tech Used (0) 0 Bonus (0) 0 TOTAL SCORE: 1676 Bonus ------- None Cogmind --------- Core Integrity 0/250 Matter 290/300 Energy 180/200 System Corruption 0% Temperature Cool (0) Movement Treading (400) Ox3 Location -10/Subcaves Parts ------- > --- POWER (1) -------- Subdweller Power Source > --- PROPULSION (2) --- Light Treads Subdweller Monowheel > --- UTILITY (2) ------ High-capacity Storage Unit Makeshift Light Armor Plating > --- WEAPON (2) ------- Subdweller Beam Cannon Subdweller Beam Cannon > --- INVENTORY (20) --- Subdweller Power Source Subdweller Power Source Subdweller Power Source Subdweller Monowheel Flightbrick Subdweller Optics Seismic Detector Makeshift Light Armor Plating Power Bank Subdweller Machine Gun Subdweller Machine Gun Grenade Launcher Subdweller Shrapnel Launcher Subdweller Shrapnel Launcher Datajack Mining Laser Peak State ------------ > --- POWER ------------ Subdweller Power Source > --- PROPULSION ------- Light Treads Subdweller Monowheel > --- UTILITY ---------- High-capacity Storage Unit Makeshift Light Armor Plating > --- WEAPON ----------- Subdweller Beam Cannon Subdweller Beam Cannon > --- INVENTORY -------- Subdweller Power Source Subdweller Power Source Subdweller Power Source Subdweller Monowheel Flightbrick Subdweller Optics Seismic Detector Makeshift Light Armor Plating Power Bank Subdweller Machine Gun Subdweller Machine Gun Grenade Launcher Subdweller Shrapnel Launcher Subdweller Shrapnel Launcher Datajack Mining Laser [Rating: 21] Favorites ----------- Power Ion Engine Engine Ion Engine Propulsion Wheel Treads Light Treads Leg Aluminum Leg Wheel Wheel Utility High-capacity Storage Unit Device Seismic Detector Storage High-capacity Storage Unit Protection Propulsion Shielding Weapon Assault Rifle Energy Gun Riot Gun Energy Cannon Subdweller Beam Cannon Ballistic Gun Assault Rifle Launcher Grenade Launcher Special Weapon Mining Laser Special Melee Weapon Datajack Build | -11 -10 -10 ------- Run | Yrd Mat Sub Slots Evolved . | . . . Power . | . . . Propulsion . | . . . Utility . | . . . Weapon . | . . . Parts Attached 48 | 7 20 21 Power 5 | 1 2 2 Engine 5 | 1 2 2 Core . | . . . Reactor . | . . . Propulsion 13 | 2 6 5 Treads 4 | . 2 2 Leg 2 | 2 . . Wheel 7 | . 4 3 Hover . | . . . Flight . | . . . Utility 9 | 2 2 5 Device 3 | 1 . 2 Storage 2 | 1 1 . Processor . | . . . Hackware . | . . . Protection 4 | . 1 3 Artifact . | . . . Weapon 21 | 2 10 9 Energy Gun 5 | 1 2 2 Energy Cannon 2 | . . 2 Ballistic Gun 8 | 1 4 3 Ballistic Cannon . | . . . Launcher 2 | . 2 . Special Weapon 3 | . 2 1 Impact Weapon . | . . . Slashing Weapon . | . . . Piercing Weapon . | . . . Special Melee Weapon 1 | . . 1 Unidentified Prototypes . | . . . Parts Lost 6 | . . 6 Power . | . . . Propulsion 2 | . . 2 Utility 1 | . . 1 Weapon 3 | . . 3 Highest Loss Streak 2 | . . 2 To Critical Strikes . | . . . Average Slot Usage (%) 99 | . 100 99 Engine 14 | . 14 14 Treads 7 | . . 10 Leg 1 | . 3 . Wheel 19 | . 23 17 Device 9 | . 6 10 Storage 14 | . 14 14 Protection 4 | . 7 3 Energy Gun 2 | . 1 2 Energy Cannon 7 | . . 10 Ballistic Gun 14 | . 21 11 Special Weapon 3 | . 3 3 Peak Build Rating 21 | 7 9 21 Average Rating 11 | 5 7 13 On Entrance 5 | . 7 8 Naked Turns . | . . . Heaviest Build 65 | 13 51 65 Greatest Support 40 | 20 40 20 Greatest Overweight (x) 3 | . 2 3 Average Overweight (x) 2 | . 1 2 Largest Inventory Capacity 20 | 8 20 20 Average Capacity 19 | 7 18 20 Most Carried 20 | 7 18 20 Average Carried 15 | 5 10 18 Final Capacity 20 | 8 20 20 Final Carried 19 | 7 17 19 Class Distribution -------------------- 100% | Mutant Dominant Class ---------------- Mutant | -10/Materials Mutant | -10/Subcaves Resources | -11 -10 -10 ----------- Run | Yrd Mat Sub Matter Collected 1161 | 333 357 471 Remotely . | . . . Salvage Created 1323 | 324 394 605 Parts 78 | 31 15 32 Haulers Intercepted 2 | . 2 . Recyclers Shooed . | . . . Parts Field Recycled . | . . . Retrieved Matter . | . . . Parts Self-Destructed 13 | . . 13 Prevented 1 | . . 1 Kills | -11 -10 -10 ------- Run | Yrd Mat Sub Combat Hostiles Destroyed 23 | . 8 15 Guns 17 | . 6 11 Cannons 3 | . . 3 AOE 2 | . 2 . Classes Destroyed 8 | 3 2 3 Worker 2 | 2 . . Tunneler 9 | 9 . . Hauler 2 | . 2 . Recycler 1 | 1 . . Swarmer 4 | . . 4 Grunt 8 | . 8 . Sentry 1 | . . 1 Subdweller 10 | . . 10 Best Kill Streak 4 | 4 2 4 Combat Bots Only 4 | . 2 4 Max Kills in Single Turn 2 | 1 1 2 Gunslinging . | . . . Exploded 1 | . 1 . Melee . | . . . Uniques/NPCs Destroyed . | . . . Combat | -11 -10 -10 -------- Run | Yrd Mat Sub Hostile Shots Fired 114 | . 36 78 Missed 28 | . 5 23 Damage Taken 1397 | . 382 1015 Core 270 | . 40 230 Absorbed by Shields . | . . . Redirected to Shielding 15 | . 9 6 Core Remaining (%) 100 | 100 . . Volleys Fired 277 | 21 60 196 Largest 2 | 2 2 2 Hottest 160 | 70 100 160 Shots Fired 381 | 42 100 239 Gun 207 | 42 80 85 Cannon 28 | . . 28 Launcher 5 | . 5 . Special 141 | . 15 126 Kinetic 152 | 21 74 57 Thermal 199 | 21 21 157 Explosive 5 | . 5 . Electromagnetic 25 | . . 25 Robot Hit Streak 20 | 10 20 15 Robot Miss Streak 7 | 2 4 7 Penetration Max . | . . . Secondary Targets 1 | . 1 . Max Gunslinging Chain 1 | . 1 . Shots Hit Robots 163 | 29 62 72 Core Hits 62 | 13 24 25 Critical Kills . | . . . Critical Parts Destroyed 1 | . 1 . Critical Strikes 3 | 2 1 . Burn 2 | 2 . . Destroy 1 | . 1 . Melee Attacks 3 | . . 3 Impact . | . . . Slashing . | . . . Piercing . | . . . Sneak Attacks 3 | . . 3 Combat Hostiles . | . . . Follow-up Attacks . | . . . Damage Inflicted 2426 | 364 914 1148 Guns 1924 | 364 773 787 Cannons 361 | . . 361 Explosions 141 | . 141 . Melee . | . . . Ramming . | . . . Kinetic 1288 | 165 722 401 Thermal 661 | 199 51 411 Explosive 141 | . 141 . Electromagnetic 336 | . . 336 Impact . | . . . Slashing . | . . . Piercing . | . . . Highest Corruption . | . . . Average Corruption . | . . . Corruption Purged . | . . . Corruption Blocked . | . . . Overload Shots . | . . . Overflow Damage . | . . . Projectiles . | . . . Explosions . | . . . Melee . | . . . Knockbacks . | . . . Impact . | . . . Kinetic . | . . . Secondary . | . . . Self-Inflicted Damage . | . . . Shots . | . . . Rammed . | . . . Targets Rammed . | . . . Kicked . | . . . Crushed . | . . . Highest Temperature 102 | 72 102 24 Average Temperature 31 | 30 33 9 Received Heat Transfer 333 | . 216 117 Siege Activations . | . . . Robots Corrupted 1 | . . 1 Combat Hostiles 1 | . . 1 Parts Fried 2 | . . 2 Impact Corruptions . | . . . Robots Melted . | . . . Combat Hostiles . | . . . Parts Melted 3 | 1 . 2 Heat Transferred 1480 | 740 148 592 Parts Sabotaged . | . . . Parts Stolen . | . . . Parts Stripped . | . . . Power Chain Reactions . | . . . Alert | -11 -10 -10 ------- Run | Yrd Mat Sub Peak Influence 244 | 60 244 . Initial 39 | . 39 . Average 86 | 25 95 . Maximum Alert Level 1 | . 1 . Low Security (%) 90 | 100 88 . Level 1 9 | . 11 . Level 2 . | . . . Level 3 . | . . . Level 4 . | . . . Level 5 . | . . . High Security . | . . . Max Security . | . . . Squads Dispatched 1 | . 1 . Investigation . | . . . Extermination . | . . . Reinforcement 1 | . 1 . Assault . | . . . Garrison . | . . . Intercept . | . . . Searches Triggered . | . . . Construction Impeded . | . . . Haulers Reinforced . | . . . Active Scanning Responses . | . . . Cargo Convoy Interrupts . | . . . Stealth | -11 -10 -10 --------- Run | Yrd Mat Sub Distress Signals 2 | . 2 . Communications Jammed . | . . . Distress Signals . | . . . Times Spotted 47 | . 28 19 Peak Tracking Total 6 | . 5 6 Tactical Retreats 3 | . 2 1 Traps | -11 -10 -10 ------- Run | Yrd Mat Sub Traps Triggered . | . . . Indirectly . | . . . Trap Hack Attempts . | . . . Triggered . | . . . Disarmed . | . . . Reprogrammed . | . . . Reused . | . . . Traps Extracted . | . . . Installed . | . . . Triggered . | . . . Machines | -11 -10 -10 ---------- Run | Yrd Mat Sub Machines Disabled 1 | . . 1 Max in Single Turn 1 | . . 1 Machines Repaired . | . . . Machines Dismantled . | . . . Machines Sabotaged . | . . . Overloaded Fab Kills . | . . . Hacking | -11 -10 -10 --------- Run | Yrd Mat Sub Machines Accessed 9 | . 7 2 Terminals 6 | . 6 . Fabricators . | . . . Repair Stations 1 | . 1 . Recycling Units . | . . . Scanalyzers . | . . . Garrison Access . | . . . Total Hacks 27 | . 22 5 Successful 21 | . 16 5 Failed 6 | . 6 . Catastrophic . | . . . Database Lockouts . | . . . Manual 15 | . 15 . Terminals 20 | . 20 . Fabricators . | . . . Repair Stations 2 | . 2 . Recycling Units . | . . . Scanalyzers . | . . . Garrison Access . | . . . Terminal Hacks 13 | . 8 5 Record 4 | . . 4 Robot Analysis 4 | . 4 . Branch Access Points 1 | . 1 . Unreport Threat 2 | . 2 . Transport Status 1 | . 1 . Derelict Proto ID Bank 1 | . . 1 Fabricator Hacks . | . . . Repair Station Hacks 1 | . 1 . Refit 1 | . 1 . Recycling Unit Hacks . | . . . Scanalyzer . | . . . Garrison Access Hacks . | . . . Unauthorized Hacks 7 | . 7 . Terminals 7 | . 7 . Assimilate 2 | . 2 . Botnet 4 | . 4 . Skim 1 | . 1 . Fabricators . | . . . Repair Stations . | . . . Recycling Units . | . . . Scanalyzers . | . . . Garrison Access . | . . . Data Cores Recovered . | . . . Used . | . . . Hacking Detections 4 | . 4 . Full Trace Events . | . . . Feedback Events . | . . . Feedback Blocked . | . . . Robot Schematics Acquired . | . . . Robots Built . | . . . Authchips . | . . . Time . | . . . Total Robot Build Rating . | . . . Part Schematics Acquired . | . . . Parts Built . | . . . Authchips . | . . . Time . | . . . Total Part Build Rating . | . . . Parts Repaired . | . . . Time . | . . . Parts Recycled . | . . . Recycled Matter . | . . . Retrieved Matter . | . . . Retrieved Components . | . . . Parts Scanalyzed . | . . . Part Schematics Acquired . | . . . Parts Damaged . | . . . Bothacking | -11 -10 -10 ------------ Run | Yrd Mat Sub Used RIF Installer . | . . . Robots Hacked 1 | . . 1 Non-combat 1 | . . 1 Combat . | . . . Robot Hacks Applied 3 | . . 3 parse_system 3 | . . 3 Relay Couplers Released . | . . . Fabnet Peak Effective % . | . . . Robots Rewired . | . . . Allies Hacked . | . . . Hacks Repelled . | . . . Allies | -11 -10 -10 -------- Run | Yrd Mat Sub Total Allies 2 | . 2 . Largest Group 2 | . 2 2 Highest-Rated Group 20 | . 20 19 Highest-Rated Ally 10 | . 10 10 Total Orders . | . . . Ally Attacks . | . . . Total Damage . | . . . Kills . | . . . Allies Corrupted . | . . . Allies Melted . | . . . Intel | -11 -10 -10 ------- Run | Yrd Mat Sub Robot Analysis Total 4 | . 4 . Derelict Logs Recovered . | . . . Drone Launches . | . . . Drone Recoveries . | . . . Exploration | -11 -10 -10 ------------- Run | Yrd Mat Sub Turns Passed 5012 | 222 1430 3360 Spaces Moved 2497 | 89 1006 1402 Core 11 | 11 . . Treads 248 | . 2 246 Legs 178 | 78 100 . Wheels 2060 | . 904 1156 Hover . | . . . Flight . | . . . Fastest Speed 50 | 50 110 110 Average Speed 152 | 111 113 182 Slowest Speed 400 | 120 260 400 Overloaded Moves . | . . . Propulsion Burnouts . | . . . Robots Hopped . | . . . Cave-ins Triggered . | . . . Exploration Rate (%) 53 | 4 99 57 Regions Visited 2 Branch Regions 1 Pre-discovered Areas 1 | . . 1 Known Exits Taken . | . . . Unknown Exits Taken 2 | 1 1 . Scrap Searched 9 | . . 9 Spaces Dug 37 | . 9 28 Terrain Destroyed 95 | . 33 62 Melee . | . . . Projectile 76 | . 14 62 AOE 19 | . 19 . Terrain Rammed . | . . . Walls Destroyed . | . . . Machines Disabled . | . . . Actions | -11 -10 -10 --------- Run | Yrd Mat Sub Total 3048 | 168 1161 1719 Wait 147 | 42 51 54 Move 2495 | 88 1005 1402 Hop . | . . . Pick Up 47 | 10 14 23 Fast Attach 6 | 4 . 2 Attach 10 | 3 . 7 Detach 1 | . 1 . Swap 32 | . 20 12 Drop 30 | . 10 20 Fire 277 | 21 60 196 Melee 3 | . . 3 Ram . | . . . Kick . | . . . Crush . | . . . Escape Stasis . | . . . Rewire . | . . . Trap . | . . . Miscellaneous . | . . . Route ------- -11/Scrapyard -10/Materials (discovered 5 exits: [*Mat x3] / *Min / *Sub) -10/Subcaves (discovered 2 exits: [*Mat] / [*Rec]) History --------- Turn | Location | Event 10 | -11/Scrapyard | Discovered new exit (range 15) 223 | -11/Scrapyard | Entered Materials 303 | -10/Materials | Build established: Mutant 536 | -10/Materials | Discovered new exit (range 4) 679 | -10/Materials | Identified exit to Mines 1124 | -10/Materials | Discovered new exit (range 14) 1291 | -10/Materials | Discovered new exit (range 13) 1370 | -10/Materials | Discovered new exit (range 10) 1653 | -10/Materials | Entered Subcaves 1653 | -10/Subcaves | Accompanied by 2 allies 1879 | -10/Subcaves | Visited Clippyterm 1882 | -10/Subcaves | Learned location of Section 7 (-3) 2538 | -10/Subcaves | Disturbed a concealed Subdweller 2855 | -10/Subcaves | Shifting Twisted Machinery released Riot Gun 2916 | -10/Subcaves | Shifting Twisted Machinery released Battle Cannon 3005 | -10/Subcaves | Discovered new exit (range 13) 3010 | -10/Subcaves | Core integrity fell below 50% 3267 | -10/Subcaves | Visited 4L-MR0's lab 3390 | -10/Subcaves | A Subdweller sparked back to life 3390 | -10/Subcaves | A Subdweller sparked back to life 3390 | -10/Subcaves | A Subdweller sparked back to life 3441 | -10/Subcaves | Found Flightbrick 3654 | -10/Subcaves | Found Power Bank 3786 | -10/Subcaves | Discovered new exit (range 11) 3838 | -10/Subcaves | A swath of the cavern ceiling suddenly collapsed 4004 | -10/Subcaves | Disturbed a concealed Subdweller 4251 | -10/Subcaves | A swath of the cavern ceiling suddenly collapsed 4863 | -10/Subcaves | Shifting Twisted Machinery released Mak. Light Armor Plating 4892 | -10/Subcaves | Shifting Twisted Machinery released Battle Cannon 5010 | -10/Subcaves | Core integrity fell below 20% 5013 | -10/Subcaves | Destroyed by SC-AIJ(R) with Subdweller Machine Gun Last Messages --------------- 03981_ Searching scrap... 03981_ Found Sub. Monowheel. 03981_ Found 36 Matter. 03994_ Subatomizers dissect the Sub. Monowheel. 04001_ Dropped Assault Rifle. 04002_ Acquired Mak. Laser. 04003_ Acquired 10 matter. 04004_ 6Y-UH9(R) angrily emerges from the Twisted Machinery. 04008_ Subatomizers dissect the Sub. Monowheel. 04010_ 6Y-UH9(R) affixes Scrap Shield Fragment to Scrap Shield. 04011_ Com. Wheel destroyed. 04015_ Mak. Laser destroyed. 04018_ Subatomizers dissect the Sub. Monowheel. 04019_ 6Y-UH9(R) destroyed. 04026_ Acquired 20 matter. 04029_ Subatomizers dissect the Sub. Monowheel. A swath of the cavern ceiling suddenly collapses. Mak. Light Armor Plating falls loose from the Twisted Machinery. Battle Cannon falls loose from the Twisted Machinery. 04906_ Acquired Mak. Light Armor Plating. Map ----- +----------------------------------------------------+ | | | | | | | ?????????????????????????????????????????????????? | | ?????????????????????????????????????????????????? | | ?????????????????????????????????????????????????? | | ?????????????????????????????????????????????????? | | ?????????????????????????????????????????????????? | | ?????????????????????????????????????????????????? | | ?????????????????????????????????????????????????? | | ?????????????????????????????????????????????????? | | ?????????????????????????????????????????????????? | | ?????????????????????????????????????????????????? | | ?????????????????????????????????????????????????? | | ?????????????????????????????????????????????????? | | ???????????????????????????????????? ????????????? | | ??????????????????????????????????? ##???????????? | | ?????????????????????###?????????? <#???????????? | | ?????###??####??????## ######?###< <##??????????? | | ????## #?# ##?????# ##; RR < ## ???????? | | ???## ## #####?# ???????? | | ??## # ### ???????? | | ??? ???????????? | | ?????????## #???????????# ?????? | | ????????## ## ##??????????? ?????? | | ???????## ### @ ;##???????????? ?????? | | ???????#" #?# ; #?? ????????? ?????? | | ???????#" " ###?#; ; ##? ???#????? ??? | | ??????##""" ##???## ;##?? ??? ##???? #?? | | ?????# """" ##???#; ;#??? ?? #????# """#?? | | ?????###"#### ##??### ## ?? ? ?????# " ### | | ???????##???#" #??##" ##?#?? ??????# " "# | | ????????????##"]#### "" #????? ??????## " "? | | ?????????????##" # " #????? ???????# """"#? | | ??????????????#"" ##"""#????# ?????????# #? | | ??????????????###" ##" "##### #??????????# #?# | | ????????????????#"" "" ##?????????# ### | | ????????????????#" "" " #?????????# | | ????????????????##" " ##"#???????????# | | ?????????????????## ###""##?????####??# ### | | ??????????????????### " #?##""##?#### ### ### | | ????????????????????#"" ###"""#?# #### ## | | ????????????????????#"## ##"""#### # | | ????????????????????###?#####"### | | ??????????????????????####"#"#"### | | ?????????????????????###""#"#"""### ## ## | | ??????????????????????#"#"""###"####### ### ##? | | ??????????????????????##"###"###"##??## #?# ##?? | | ???????????????????????### #""""""#### %"#?###??? | | ?????????????????????????#""#"##""## ""######## | +----------------------------------------------------+ Best States ------------- Heat Dissipation 25 Energy Generation 15 Energy Capacity 250 Matter Stores 300 Matter Capacity 300 Sight Range 16 Terrain Scan Density 10 Armor Coverage 100 Propulsion Shielding 33 Evasion (%) 55 Recoil Reduction 2 Item Schematics ----------------- None Robot Schematics ------------------ None Fabricated ------------ Nothing Alien Tech Used ----------------- None Achievements -------------- None Challenges ------------ None Game ------ Seed ArchitectStealthCore Manual? 0 Play Time 00:41:01 Cumulative 88.5 hours Start 2024.10.28 @ 23:14:09 End 2024.10.29 @ 00:01:17 Sessions 1 Manual Loads 0 Difficulty Rogue Special Mode None Game No. 148 Rogue 120 Adventurer 28 Explorer 0 Win Type - Total 0 Types 0/0/0/0/0/0/0/0/0 Lore% 32 Gallery% 31 Achievement% 32 Wizard Run 0 Options --------- Layout 0 ASCII 0 Keyboard 1 Movement Numpad Keybinds 0 Fullscreen 2 Font 36/Smallcaps Map View 76x50 Zoom Use 0% Tactical HUD 1 Map Filters NONE Filters NONE Steam 1 RUN: c04cf9d9-e961-4cca-8828-14696478a462